fUST/lending_fUST_20260207
["ID","MTS","AMOUNT","RATE_DAILY","PERIOD"]
[404684464,1770442245022,-1898.5843408,0.000255,2]
[404684465,1770442245031,-1041.66666667,0.00025551,2]
[404684466,1770442245041,-741.63626124,0.00025551,2]
[404684467,1770442245051,-6592.57169158,0.00025861,2]
[404684468,1770442245063,-2127.59885732,0.00025861,2]
[404684469,1770442245072,-856.2457571,0.00025861,2]
[404684470,1770442245082,-194.72792766,0.00025869,2]
[404684471,1770442245092,-1000.0,0.00025869,2]
[404684472,1770442245101,-201.93286099,0.00025869,2]
[404684473,1770442245110,-1000.0,0.00025869,2]
[404684474,1770442245119,-209.40437684,0.00025869,2]
[404684475,1770442245129,-288.82984769,0.00025869,2]
[404684476,1770442245139,-217.15233878,0.00025869,2]
[404684477,1770442245150,-225.18697532,0.00025869,2]
[404684478,1770442245159,-233.51889341,0.00025869,2]
[404684479,1770442245168,-242.15909246,0.00025869,2]
[404684480,1770442245178,-251.11897888,0.00025869,2]
[404684481,1770442245188,-260.4103811,0.00025869,2]
[404684482,1770442245198,-270.0455652,0.00025869,2]
[404684483,1770442245207,-280.03725112,0.00025869,2]
[404684484,1770442245217,-290.39862941,0.00025869,2]
[404684485,1770442245226,-301.1433787,0.00025869,2]
[404684486,1770442245236,-500.0,0.00025888,7]
[404684487,1770442245245,-1052.30038803,0.0002649,2]
[404684488,1770442245392,-1266.1150297,0.0002649,2]
[404684489,1770442245403,-196.228,0.00026499,13]
[404684490,1770442245413,-2904.38721069,0.000265,2]
[404684493,1770442245788,-2095.61278931,0.000265,2]
[404684494,1770442245797,-2000.0,0.00026667,7]
[404684495,1770442245807,-741.63626124,0.00026667,7]
[404684496,1770442245816,-613.39,0.000269,14]
[404684497,1770442245825,-704.18005782,0.0002699,2]
[404684498,1770442245834,-150.0,0.00027,10]
[404684499,1770442245844,-1568.06059624,0.00027,2]
[404684500,1770442245853,-1082.417886,0.00027058,2]
[404684501,1770442245863,-155.25,0.000271,7]
[404684502,1770442245872,-500.197,0.00027224,2]
[404684503,1770442245882,-200.0,0.000273,24]
[404684504,1770442245897,-168.0,0.00027317,2]
[404684506,1770442245908,-151.0,0.00027377,2]
[404684507,1770442245918,-1361.80339718,0.00027387,2]
[404684511,1770442246096,-24140.76619782,0.00027387,2]
[404684512,1770442246106,-212.89442928,0.00027387,2]
[404684513,1770442246116,-193.69947961,0.00027397,2]
[404684514,1770442246127,-151.0,0.00027397,2]
[404684515,1770442246143,-151.0,0.00027397,2]
[404684516,1770442246161,-151.0,0.00027397,2]
[404684517,1770442246174,-151.0,0.00027397,2]
[404684518,1770442246184,-151.0,0.00027397,2]
[404684519,1770442246195,-151.0,0.00027397,2]
[404684520,1770442246204,-151.0,0.00027397,2]
[404684521,1770442246215,-248.473507,0.00027397,2]
[404684522,1770442246224,-904.63418,0.00027397,2]
[404684523,1770442246235,-904.63418,0.00027397,2]
[404684524,1770442246246,-904.63418,0.00027397,2]
[404684525,1770442246257,-904.63418,0.00027397,2]
[404684526,1770442246268,-904.63418,0.00027397,2]
[404684527,1770442246278,-904.63418,0.00027397,2]
[404684528,1770442246287,-904.63418,0.00027397,2]
[404684529,1770442246297,-904.63418,0.00027397,2]
[404684530,1770442246308,-904.63418,0.00027397,2]
[404684531,1770442246319,-904.63418,0.00027397,2]
[404684532,1770442246330,-904.63418,0.00027397,2]
[404684533,1770442246341,-151.0,0.00027397,2]
[404684534,1770442246350,-904.63418,0.00027397,2]
[404684535,1770442246360,-151.0,0.00027397,2]
[404684536,1770442246369,-151.0,0.00027397,2]
[404684537,1770442246379,-904.63418,0.00027397,2]
[404684538,1770442246389,-904.63418,0.00027397,2]
[404684539,1770442246400,-151.0,0.00027397,2]
[404684540,1770442246410,-904.63418,0.00027397,2]
[404684541,1770442246419,-151.0,0.00027397,2]
[404684542,1770442246428,-904.63418,0.00027397,2]
[404684543,1770442246439,-151.0,0.00027397,2]
[404684544,1770442246449,-904.63418,0.00027397,2]
[404684545,1770442246460,-151.0,0.00027397,2]
[404684546,1770442246472,-904.63418,0.00027397,2]
[404684547,1770442246483,-151.0,0.00027397,2]
[404684548,1770442246494,-904.63418,0.00027397,2]
[404684549,1770442246505,-151.0,0.00027397,2]
[404684550,1770442246515,-904.634184,0.00027397,2]
[404684551,1770442246526,-151.0,0.00027397,2]
[404684552,1770442246538,-151.0,0.00027397,2]
[404684553,1770442246549,-151.0,0.00027397,2]
[404684554,1770442246560,-151.0,0.00027397,2]
[404684555,1770442246569,-151.0,0.00027397,2]
[404684556,1770442246579,-151.0,0.00027397,2]
[404684557,1770442246588,-180.656341,0.00027397,2]
[404684558,1770442246599,-411.48884,0.00027397,2]
[404684559,1770442246610,-411.48884,0.00027397,2]
[404684560,1770442246620,-411.48884,0.00027397,2]
[404684561,1770442246638,-411.48884,0.00027397,2]
[404684562,1770442246659,-411.48884,0.00027397,2]
[404684563,1770442246679,-411.48884,0.00027397,2]
[404684564,1770442246691,-411.48884,0.00027397,2]
[404684565,1770442246703,-411.48884,0.00027397,2]
[404684566,1770442246716,-411.48884,0.00027397,2]
[404684567,1770442246725,-411.48884,0.00027397,2]
[404684568,1770442246737,-411.48884,0.00027397,2]
[404684569,1770442246748,-411.48884,0.00027397,2]
[404684570,1770442246758,-411.48884,0.00027397,2]
[404684571,1770442246768,-411.48884,0.00027397,2]
[404684572,1770442246782,-411.48884,0.00027397,2]
[404684573,1770442246793,-411.48884,0.00027397,2]
[404684574,1770442246803,-411.48884,0.00027397,2]
[404684575,1770442246813,-411.48884,0.00027397,2]
[404684576,1770442246824,-411.48884,0.00027397,2]
[404684577,1770442246834,-411.488837,0.00027397,2]
[404684578,1770442246843,-151.0,0.00027397,2]
[404684579,1770442246852,-151.0,0.00027397,2]
[404684580,1770442246863,-151.0,0.00027397,2]
[404684581,1770442246874,-151.0,0.00027397,2]
[404684582,1770442246890,-151.0,0.00027397,2]
[404684583,1770442246901,-151.0,0.00027397,2]
[404684584,1770442246914,-151.0,0.00027397,2]
[404684585,1770442246927,-151.0,0.00027397,2]
[404684586,1770442246939,-151.0,0.00027397,2]
[404684587,1770442246950,-151.0,0.00027397,2]
[404684588,1770442246960,-254.782451,0.00027397,2]
[404684589,1770442246971,-151.0,0.00027397,2]
[404684590,1770442246983,-151.0,0.00027397,2]
[404684591,1770442246993,-151.0,0.00027397,2]
[404684592,1770442247005,-160.930097,0.00027397,2]
[404684593,1770442247016,-151.0,0.00027397,2]
[404684594,1770442247031,-179.448871,0.00027397,2]
[404684595,1770442247041,-778.28565,0.00027397,2]
[404684596,1770442247053,-778.28565,0.00027397,2]
[404684597,1770442247063,-778.28565,0.00027397,2]
[404684598,1770442247073,-778.28565,0.00027397,2]
[404684599,1770442247083,-778.28565,0.00027397,2]
[404684600,1770442247092,-778.28565,0.00027397,2]
[404684601,1770442247102,-778.28565,0.00027397,2]
[404684602,1770442247111,-778.28565,0.00027397,2]
[404684603,1770442247121,-778.28565,0.00027397,2]
[404684604,1770442247130,-778.28565,0.00027397,2]
[404684605,1770442247140,-778.28565,0.00027397,2]
[404684606,1770442247149,-778.28565,0.00027397,2]
[404684607,1770442247158,-778.28565,0.00027397,2]
[404684608,1770442247167,-778.28565,0.00027397,2]
[404684609,1770442247176,-778.28565,0.00027397,2]
[404684610,1770442247186,-778.28565,0.00027397,2]
[404684611,1770442247195,-778.28565,0.00027397,2]
[404684612,1770442247205,-778.28565,0.00027397,2]
[404684613,1770442247214,-778.28565,0.00027397,2]
[404684614,1770442247223,-778.28566,0.00027397,2]
[404684615,1770442247232,-227.270368,0.00027397,2]
[404684616,1770442247242,-227.270368,0.00027397,2]
[404684617,1770442247251,-227.270368,0.00027397,2]
[404684618,1770442247356,-227.270368,0.00027397,2]
[404684619,1770442247366,-227.270368,0.00027397,2]
[404684620,1770442247375,-227.270368,0.00027397,2]
[404684621,1770442247384,-227.270368,0.00027397,2]
[404684622,1770442247393,-3.02834187,0.00027397,2]
[404684632,1770442659467,5226.0,0.000151,2]
[404684639,1770443130779,500.0,0.00024899,120]
[404684640,1770443130842,500.0,0.0002698,120]
[404684641,1770443131066,500.0,0.00027386,120]
[404684642,1770443131293,500.0,0.00027387,120]
[404684643,1770443131521,319.3,0.00027396,120]
[404684679,1770443432197,-2429.39085911,0.00017961,2]
[404684681,1770443432213,-166.66666666,0.00018142,2]
[404684683,1770443432223,-150.0,0.00018242,2]
[404684685,1770443432233,-300.0,0.00018268,2]
[404684687,1770443432242,-300.0,0.00018268,2]
[404684689,1770443432253,-300.0,0.00018268,2]
[404684691,1770443432263,-300.0,0.00018268,2]
[404684693,1770443432272,-678.92550223,0.00018268,2]
[404684696,1770443432285,-250.5264,0.00018268,2]
[404684710,1770443438174,-270.54809777,0.00018268,2]
[404684711,1770443438184,-8173.5362377,0.00018269,2]
[404684712,1770443438194,-3157.88340582,0.00018698,2]
[404684713,1770443438204,-387.62026733,0.00018798,2]
[404684714,1770443438216,-500.0,0.00018798,2]
[404684715,1770443438226,-500.0,0.00018798,2]
[404684716,1770443438236,-500.0,0.00018798,2]
[404684717,1770443438247,-500.0,0.00018798,2]
[404684718,1770443438259,-500.0,0.00018798,2]
[404684719,1770443438269,-500.0,0.00018798,2]
[404684720,1770443438280,-500.0,0.00018798,2]
[404684721,1770443438293,-500.0,0.00018798,2]
[404684722,1770443438303,-500.0,0.00018798,2]
[404684723,1770443438313,-500.0,0.00018798,2]
[404684724,1770443438323,-500.0,0.00018798,2]
[404684725,1770443438333,-500.0,0.00018798,2]
[404684726,1770443438343,-500.0,0.00018798,2]
[404684727,1770443438352,-500.0,0.00018798,2]
[404684728,1770443438362,-500.0,0.00018798,2]
[404684729,1770443438372,-500.0,0.00018798,2]
[404684730,1770443438382,-500.0,0.00018798,2]
[404684731,1770443438392,-500.0,0.00018798,2]
[404684732,1770443438402,-500.0,0.00018798,2]
[404684733,1770443438412,-500.0,0.00018798,2]
[404684734,1770443438422,-500.0,0.00018798,2]
[404684735,1770443438436,-500.0,0.00018798,2]
[404684736,1770443438446,-500.0,0.00018798,2]
[404684737,1770443438455,-500.0,0.00018798,2]
[404684738,1770443438465,-389.78543614,0.00018798,2]
[404684739,1770443438475,-500.0,0.00018798,2]
[404684740,1770443438485,-500.0,0.00018798,2]
[404684741,1770443438495,-500.0,0.00018798,2]
[404684742,1770443438504,-500.0,0.00018798,2]
[404684743,1770443438514,-500.0,0.00018798,2]
[404684744,1770443438523,-500.0,0.00018798,2]
[404684745,1770443438533,-500.0,0.00018798,2]
[404684746,1770443438542,-500.0,0.00018798,2]
[404684747,1770443438552,-500.0,0.00018798,2]
[404684748,1770443438562,-500.0,0.00018798,2]
[404684749,1770443438572,-500.0,0.00018798,2]
[404684750,1770443438582,-500.0,0.00018798,2]
[404684751,1770443438591,-500.0,0.00018798,2]
[404684752,1770443438601,-500.0,0.00018798,2]
[404684753,1770443438611,-500.0,0.00018798,2]
[404684754,1770443438621,-500.0,0.00018798,2]
[404684755,1770443438631,-500.0,0.00018798,2]
[404684756,1770443438640,-500.0,0.00018798,2]
[404684757,1770443438649,-500.0,0.00018798,2]
[404684758,1770443438659,-500.0,0.00018798,2]
[404684759,1770443438669,-500.0,0.00018798,2]
[404684760,1770443438680,-500.0,0.00018798,2]
[404684761,1770443438689,-500.0,0.00018798,2]
[404684762,1770443438699,-500.0,0.00018798,2]
[404684763,1770443438708,-500.0,0.00018798,2]
[404684764,1770443438718,-500.0,0.00018798,2]
[404684765,1770443438727,-500.0,0.00018798,2]
[404684766,1770443438737,-500.0,0.00018798,2]
[404684767,1770443438746,-500.0,0.00018798,2]
[404684768,1770443438756,-500.0,0.00018798,2]
[404684769,1770443438766,-500.0,0.00018798,2]
[404684770,1770443438775,-500.0,0.00018798,2]
[404684771,1770443438785,-500.0,0.00018798,2]
[404684772,1770443438795,-500.0,0.00018798,2]
[404684773,1770443438807,-500.0,0.00018798,2]
[404684774,1770443438969,-500.0,0.00018798,2]
[404684775,1770443438980,-500.0,0.00018798,2]
[404684776,1770443438990,-500.0,0.00018798,2]
[404684777,1770443439000,-500.0,0.00018798,2]
[404684778,1770443439010,-500.0,0.00018798,2]
[404684779,1770443439020,-500.0,0.00018798,2]
[404684780,1770443439030,-500.0,0.00018798,2]
[404684781,1770443439040,-500.0,0.00018798,2]
[404684782,1770443439050,-500.0,0.00018798,2]
[404684783,1770443439060,-500.0,0.00018798,2]
[404684784,1770443439071,-500.0,0.00018798,2]
[404684785,1770443439083,-500.0,0.00018798,2]
[404684786,1770443439093,-500.0,0.00018798,2]
[404684787,1770443439103,-500.0,0.00018798,2]
[404684788,1770443439112,-500.0,0.00018798,2]
[404684789,1770443439122,-500.0,0.00018798,2]
[404684790,1770443439131,-500.0,0.00018798,2]
[404684791,1770443439141,-500.0,0.00018798,2]
[404684792,1770443439150,-500.0,0.00018798,2]
[404684793,1770443439160,-500.0,0.00018798,2]
[404684794,1770443439169,-500.0,0.00018798,2]
[404684795,1770443439180,-500.0,0.00018798,2]
[404684796,1770443439190,-500.0,0.00018798,2]
[404684797,1770443439199,-500.0,0.00018798,2]
[404684798,1770443439209,-500.0,0.00018798,2]
[404684799,1770443439220,-414.35014142,0.00018798,2]
[404684800,1770443439230,-500.0,0.00018798,2]
[404684801,1770443439240,-500.0,0.00018798,2]
[404684802,1770443439251,-500.0,0.00018798,2]
[404684803,1770443439260,-500.0,0.00018798,2]
[404684804,1770443439270,-500.0,0.00018798,2]
[404684805,1770443439280,-500.0,0.00018798,2]
[404684806,1770443439291,-500.0,0.00018798,2]
[404684807,1770443439301,-500.0,0.00018798,2]
[404684808,1770443439310,-500.0,0.00018798,2]
[404684809,1770443439320,-500.0,0.00018798,2]
[404684810,1770443439329,-500.0,0.00018798,2]
[404684811,1770443439339,-550.6445159,0.00018798,2]
[404684812,1770443439348,-500.0,0.00018798,2]
[404684813,1770443439358,-500.0,0.00018798,2]
[404684814,1770443439367,-500.0,0.00018798,2]
[404684815,1770443439377,-500.0,0.00018798,2]
[404684816,1770443439386,-500.0,0.00018798,2]
[404684817,1770443439396,-500.0,0.00018798,2]
[404684818,1770443439405,-500.0,0.00018798,2]
[404684819,1770443439415,-500.0,0.00018798,2]
[404684820,1770443439425,-500.0,0.00018798,2]
[404684821,1770443439436,-500.0,0.00018798,2]
[404684822,1770443439446,-500.0,0.00018798,2]
[404684823,1770443439455,-500.0,0.00018798,2]
[404684824,1770443439465,-500.0,0.00018798,2]
[404684825,1770443439474,-605.06445159,0.00018798,2]
[404684826,1770443439483,-500.0,0.00018798,2]
[404684827,1770443439493,-500.0,0.00018798,2]
[404684828,1770443439502,-500.0,0.00018798,2]
[404684829,1770443439511,-500.0,0.00018798,2]
[404684830,1770443439520,-500.0,0.00018798,2]
[404684831,1770443439529,-500.0,0.00018798,2]
[404684832,1770443439539,-500.0,0.00018798,2]
[404684833,1770443439548,-500.0,0.00018798,2]
[404684834,1770443439557,-500.0,0.00018798,2]
[404684835,1770443439567,-500.0,0.00018798,2]
[404684836,1770443439575,-500.0,0.00018798,2]
[404684837,1770443439585,-500.0,0.00018798,2]
[404684838,1770443439594,-500.0,0.00018798,2]
[404684839,1770443439603,-500.0,0.00018798,2]
[404684840,1770443439612,-500.0,0.00018798,2]
[404684841,1770443439621,-500.0,0.00018798,2]
[404684842,1770443439630,-500.0,0.00018798,2]
[404684843,1770443439639,-500.0,0.00018798,2]
[404684844,1770443439650,-500.0,0.00018798,2]
[404684845,1770443439660,-500.0,0.00018798,2]
[404684846,1770443439669,-500.0,0.00018798,2]
[404684847,1770443439680,-500.0,0.00018798,2]
[404684848,1770443439689,-500.0,0.00018798,2]
[404684849,1770443439698,-500.0,0.00018798,2]
[404684850,1770443439707,-500.0,0.00018798,2]
[404684851,1770443439716,-500.0,0.00018798,2]
[404684852,1770443439725,-500.0,0.00018798,2]
[404684853,1770443439734,-500.0,0.00018798,2]
[404684854,1770443439743,-500.0,0.00018798,2]
[404684855,1770443439752,-500.0,0.00018798,2]
[404684856,1770443439762,-500.0,0.00018798,2]
[404684857,1770443439772,-500.0,0.00018798,2]
[404684858,1770443439781,-500.0,0.00018798,2]
[404684859,1770443439791,-500.0,0.00018798,2]
[404684860,1770443439800,-500.0,0.00018798,2]
[404684861,1770443439811,-500.0,0.00018798,2]
[404684862,1770443439821,-500.0,0.00018798,2]
[404684863,1770443439831,-500.0,0.00018798,2]
[404684864,1770443439841,-500.0,0.00018798,2]
[404684865,1770443439851,-500.0,0.00018798,2]
[404684866,1770443439862,-243.35220012,0.00018798,2]
[404684867,1770443439872,-50000.0,0.00018798,2]
[404684868,1770443439882,-500.0,0.00018799,2]
[404684869,1770443439892,-449.24680444,0.00018799,2]
[404684870,1770443439902,-508.5265719,0.00018894,2]
[404684871,1770443439912,-500.0,0.00018894,2]
[404684872,1770443439921,-500.0,0.00018894,2]
[404684873,1770443439932,-500.0,0.00018894,2]
[404684874,1770443439941,-500.0,0.00018894,2]
[404684875,1770443439950,-500.0,0.00018894,2]
[404684876,1770443439960,-500.0,0.00018894,2]
[404684877,1770443439969,-500.0,0.00018894,2]
[404684878,1770443439979,-508.34717865,0.00018897,2]
[404684879,1770443439988,-193.79869114,0.00018898,2]
[404684880,1770443439998,-500.0,0.00018898,2]
[404684881,1770443440008,-500.0,0.00018898,2]
[404684882,1770443440017,-500.0,0.00018898,2]
[404684883,1770443440026,-500.0,0.00018898,2]
[404684884,1770443440036,-500.0,0.00018898,2]
[404684885,1770443440045,-500.0,0.00018898,2]
[404684886,1770443440054,-500.0,0.00018898,2]
[404684887,1770443440063,-500.0,0.00018898,2]
[404684888,1770443440072,-255.20292426,0.00018898,2]
[404684889,1770443440082,-174.79,0.000189,2]
[404684890,1770443440091,-303.10001603,0.000189,2]
[404684891,1770443440100,-500.0,0.00018993,2]
[404684892,1770443440110,-500.0,0.00018993,2]
[404684893,1770443440119,-500.0,0.00018993,2]
[404684894,1770443440128,-500.0,0.00018993,2]
[404684895,1770443440138,-500.0,0.00018994,2]
[404684896,1770443440147,-500.0,0.00018994,2]
[404684897,1770443440156,-645.94811314,0.00018994,2]
[404684898,1770443440165,-500.0,0.00019073,2]
[404684899,1770443440175,-303.10001603,0.00019089,2]
[404684900,1770443440186,-192.26,0.000192,2]
[404684901,1770443440196,-539.67937505,0.00019277,2]
[404684902,1770443440205,-500.0,0.00019277,2]
[404684903,1770443440218,-500.0,0.00019277,2]
[404684904,1770443440227,-501.96092239,0.00019277,2]
[404684905,1770443440237,-303.10001603,0.00019278,2]
[404684906,1770443440246,-500.0,0.00019347,2]
[404684907,1770443440258,-303.10001603,0.00019467,2]
[404684908,1770443440267,-500.0,0.00019621,2]
[404684909,1770443440277,-303.10001601,0.00019656,2]
[404684910,1770443440287,-509.2544,0.00019718,2]
[404684911,1770443440297,-509.2544,0.00019718,3]
[404684912,1770443440307,-200.0,0.00019718,2]
[404684913,1770443440316,-509.2544,0.00019718,2]
[404684914,1770443440326,-509.2544,0.00019718,3]
[404684915,1770443440336,-318.43,0.00019718,2]
[404684917,1770443440345,-354.28491473,0.000198,2]
[404684918,1770443440355,-354.28491471,0.000198,2]
[404684920,1770443440365,-354.28491471,0.000198,2]
[404684921,1770443440374,-500.0,0.00019895,2]
[404684922,1770443440384,-250.0,0.00019927,2]
[404684923,1770443440393,-196.0,0.00019927,2]
[404684924,1770443440403,-303.0,0.00019927,2]
[404684926,1770443440412,-420.0,0.00019927,2]
[404684927,1770443440422,-1680.0,0.00020025,2]
[404684928,1770443440431,-500.0,0.00020169,2]
[404684929,1770443440441,-177.0,0.00020242,2]
[404684930,1770443440451,-509.2544,0.00020411,5]
[404684931,1770443440460,-431.36548199,0.00020443,2]
[404684932,1770443440469,-500.0,0.00020592,2]
[404684933,1770443440479,-707.74023645,0.00020885,7]
[404684934,1770443440488,-3157.88340577,0.00021666,2]
[404684935,1770443440497,-587.0,0.00021737,2]
[404684936,1770443440506,-2000.0,0.00021917,2]
[404684937,1770443440516,-184.40344219,0.00021917,2]
[404684938,1770443440525,-2351.0,0.0002195,2]
[404684939,1770443440534,-155.25,0.000221,7]
[404684940,1770443440544,-204.0,0.00022242,2]
[404684941,1770443440553,-500.0,0.00023706,2]
[404684942,1770443440562,-823.0,0.00023711,2]
[404684943,1770443440572,-2395.0,0.00024061,2]
[404684944,1770443440581,-231.0,0.00024242,2]
[404684945,1770443440591,-252.05954916,0.00024262,2]
[404684946,1770443440601,-500.0,0.00024611,2]
[404684947,1770443440610,-3157.88340577,0.00024634,2]
[404684948,1770443440619,-1738.81156332,0.000249,2]
[404684949,1770443440629,-627.22967073,0.0002525,2]
[404684950,1770443440638,-741.63626124,0.00025445,2]
[404684951,1770443440647,-500.0,0.0002581,7]
[404684952,1770443440656,-151.0,0.00025897,2]
[404684953,1770443440666,-194.72792766,0.00025897,2]
[404684954,1770443440675,-201.93286099,0.00025897,2]
[404684955,1770443440685,-209.40437684,0.00025897,2]
[404684956,1770443440694,-217.15233878,0.00025897,2]
[404684957,1770443440703,-225.18697532,0.00025897,2]
[404684958,1770443440712,-233.51889341,0.00025897,2]
[404684959,1770443440721,-242.15909246,0.00025897,2]
[404684960,1770443440731,-251.11897888,0.00025897,2]
[404684961,1770443440740,-260.4103811,0.00025897,2]
[404684962,1770443440749,-270.0455652,0.00025897,2]
[404684963,1770443440758,-280.03725112,0.00025897,2]
[404684964,1770443440767,-250.0,0.00025897,2]
[404684965,1770443440776,-290.39862941,0.00025897,2]
[404684966,1770443440785,-250.0,0.00025897,2]
[404684967,1770443440795,-301.1433787,0.00025897,2]
[404684968,1770443440804,-250.0,0.00025897,2]
[404684969,1770443440813,-250.0,0.00025897,2]
[404684970,1770443440822,-250.0,0.00025897,2]
[404684971,1770443440831,-301.35758048,0.00025897,2]
[404684972,1770443440841,-500.0,0.00025921,7]
[404684973,1770443440850,-151.0,0.00026445,2]
[404684974,1770443440860,-156.982,0.000265,13]
[404684975,1770443440869,-5000.0,0.000265,2]
[404684976,1770443440879,-151.0,0.00026993,2]
[404684977,1770443440888,-303.0,0.000273,24]
[404684978,1770443440897,-579.60385444,0.00027377,2]
[404684979,1770443440907,-1159.20770888,0.00027387,2]
[404684980,1770443440917,-5216.43468996,0.00027387,2]
[404684981,1770443440927,-6905.9205364,0.00027397,2]
[404684982,1770443440937,-66319.4709513,0.00027397,2]
[404684983,1770443440946,-221.37083384,0.00027397,2]
[404684984,1770443440955,-466.92442212,0.00027397,2]
[404684985,1770443440964,-840.46395982,0.00027397,2]
[404684986,1770443440974,-1494.1581508,0.00027397,2]
[404684987,1770443440985,-2334.62211062,0.00027397,2]
[404684988,1770443440994,-3358.49398345,0.00027397,2]
[404684989,1770443441004,-424.93495225,0.00027397,2]
[404684990,1770443441013,-764.88291404,0.00027397,2]
[404684991,1770443441022,-1359.79184719,0.00027397,2]
[404684992,1770443441032,-2122.55008647,0.00027397,2]
[404684993,1770443441041,-2379.8847786,0.00027397,2]
[404684994,1770443441050,-345.54603594,0.00027397,2]
[404684995,1770443441059,-162.53410685,0.00027397,2]
[404684996,1770443441068,-151.0,0.00027397,2]
[404684997,1770443441078,-151.0,0.00027397,2]
[404684998,1770443441087,-151.0,0.00027397,2]
[404684999,1770443441095,-151.0,0.00027397,2]
[404685000,1770443441104,-151.0,0.00027397,2]
[404685001,1770443441114,-151.0,0.00027397,2]
[404685002,1770443441123,-151.0,0.00027397,2]
[404685003,1770443441132,-151.0,0.00027397,2]
[404685004,1770443441142,-151.0,0.00027397,2]
[404685005,1770443441151,-227.756061,0.00027397,2]
[404685006,1770443441160,-151.0,0.00027397,2]
[404685007,1770443441170,-151.0,0.00027397,2]
[404685008,1770443441180,-151.0,0.00027397,2]
[404685009,1770443441190,-151.0,0.00027397,2]
[404685010,1770443441199,-151.0,0.00027397,2]
[404685011,1770443441210,-151.0,0.00027397,2]
[404685012,1770443441221,-151.0,0.00027397,2]
[404685013,1770443441230,-151.0,0.00027397,2]
[404685014,1770443441240,-226.10039,0.00027397,2]
[404685015,1770443441250,-151.0,0.00027397,2]
[404685016,1770443441259,-151.0,0.00027397,2]
[404685017,1770443441268,-151.0,0.00027397,2]
[404685018,1770443441279,-151.0,0.00027397,2]
[404685019,1770443441291,-151.0,0.00027397,2]
[404685020,1770443441300,-151.0,0.00027397,2]
[404685021,1770443441309,-151.0,0.00027397,2]
[404685022,1770443441325,-151.0,0.00027397,2]
[404685023,1770443441346,-151.0,0.00027397,2]
[404685024,1770443441363,-207.414308,0.00027397,2]
[404685025,1770443441373,-151.0,0.00027397,2]
[404685026,1770443441385,-151.0,0.00027397,2]
[404685027,1770443441394,-151.0,0.00027397,2]
[404685028,1770443441406,-163.401497,0.00027397,2]
[404685029,1770443441416,-151.0,0.00027397,2]
[404685030,1770443441427,-151.0,0.00027397,2]
[404685031,1770443441438,-151.0,0.00027397,2]
[404685032,1770443441450,-151.0,0.00027397,2]
[404685033,1770443441460,-151.0,0.00027397,2]
[404685034,1770443441472,-151.0,0.00027397,2]
[404685035,1770443441484,-161.820359,0.00027397,2]
[404685036,1770443441494,-202.07722,0.00027397,2]
[404685037,1770443441505,-151.0,0.00027397,2]
[404685038,1770443441516,-151.0,0.00027397,2]
[404685039,1770443441527,-151.0,0.00027397,2]
[404685040,1770443441537,-151.0,0.00027397,2]
[404685041,1770443441548,-151.0,0.00027397,2]
[404685042,1770443441557,-151.0,0.00027397,2]
[404685043,1770443441672,-151.0,0.00027397,2]
[404685044,1770443441682,-151.0,0.00027397,2]